[Event "WTCC-50 2018"]
[Site "Radebeul"]
[Date "2018.07.08"]
[Round "2"]
[White "Wilke, Werner"]
[Black "Wallner, Joachim"]
[Result "0-1"]
[ECO "D00"]
[WhiteElo "2282"]
[BlackElo "2311"]
[Annotator "NA"]
[PlyCount "70"]
[EventDate "2018.07.07"]
[EventType "team-tourn"]
[EventCountry "GER"]
[SourceTitle "playchess.com"]
[Source "ChessBase"]
[SourceQuality "1"]
[TimeControl "40/5400+30:1800+30"]

1. d4 {[%emt 0:00:00]} d5 {[%emt 0:00:00]} 2. Bf4 {[%emt 0:00:00]} Nf6 {[%emt 0:00:15]} 3. e3 {[%emt 0:01:25]} Bf5 {[%emt 0:03:34]} 4. c4 {[%emt 0:04:43]} c6 {[%emt 0:01:30]} 5. Qb3 {[%emt 0:00:54]} Qb6 {[%emt 0:00:19]} 6. c5 {[%emt 0:00:52]} Qxb3 {[%emt 0:00:24]} 7. axb3 {[%emt 0:00:02]} Nbd7 {[%emt 0:00:28]} 8. b4 {[%emt 0:02:16]} Bxb1 {[%emt 0:04:21]} 9. Rxb1 {[%emt 0:00:06]} Nh5 {[%emt 0:00:08]} 10. Nf3 {[%emt 0:07:54]} Nxf4 {[%emt 0:02:18]} 11. exf4 {[%emt 0:00:02]} a6 {[%emt 0:00:32]} 12. Bd3 {[%emt 0:04:11]} g6 {[%emt 0:03:13]} 13. Kd2 {[%emt 0:01:24]} Bg7 {[%emt 0:04:30]} 14. Kc3 {[%emt 0:12:04]} O-O $11 {[%emt 0:08:28]} 15. Rhe1 {[%emt 0:05:59]} e6 {[%emt 0:00:35]} 16. Ne5 {[%emt 0:22:29]} Nxe5 {[%emt 0:02:48]} 17. fxe5 {[%emt 0:00:17]} f6 {[%emt 0:00:04]} 18. f4 {[%emt 0:05:16]} fxe5 {[%emt 0:00:57]} 19. fxe5 {[%emt 0:00:02]} Rf2 {[%emt 0:00:30]} 20. Re2 {[%emt 0:00:08]} Raf8 {[%emt 0:00:31]} 21. Rbe1 {[%emt 0:00:36]} R2f4 {[%emt 0:02:26]} 22. Rc2 {[%emt 0:14:29]} Bh6 {[%emt 0:02:50]} 23. b3 {[%emt 0:07:02]} Kg7 {[%emt 0:00:13]} 24. Ra2 {[%emt 0:01:46]} Bg5 {[%emt 0:01:25]} 25. g3 {[%emt 0:02:32]} Rf3 {[%emt 0:04:09]} 26. Rg2 {[%emt 0:00:25]} Be3 {[%emt 0:05:12]} 27. Ree2 {[%emt 0:04:07]} g5 {[%emt 0:02:16]} 28. Rc2 {[%emt 0:01:24]} Bf2 {[%emt 0:02:32]} 29. Rc1 {[%emt 0:00:57]} h5 {[%emt 0:02:16]} 30. Rd1 {[%emt 0:00:19]} Kh6 {[%emt 0:01:41]} 31. Kc2 {[%emt 0:00:59]} Bxd4 {[%emt 0:00:55]} 32. Bxa6 {[%emt 0:00:44]} Rc3+ {[%emt 0:00:48]} 33. Kb1 {[%emt 0:00:07]} Rxb3+ {[%emt 0:00:06]} 34. Ka2 {[%emt 0:00:42]} Rxb4 {[%emt 0:00:09]} 35. Ka3 {[%emt 0:00:34]} Bxc5 {[%emt 0:00:16]} 0-1

[Event "WTCC-50 2018"]
[Site "Radebeul"]
[Date "2018.07.08"]
[Round "2"]
[White "Denk, Adolf"]
[Black "Schweitzer, Werner"]
[Result "1/2-1/2"]
[ECO "D10"]
[WhiteElo "2262"]
[BlackElo "2033"]
[Annotator "NA"]
[PlyCount "75"]
[EventDate "2018.07.07"]
[EventType "team-tourn"]
[EventCountry "GER"]
[SourceTitle "playchess.com"]
[Source "ChessBase"]
[SourceQuality "1"]
[TimeControl "40/5400+30:1800+30"]

1. d4 {[%emt 0:00:00]} d5 {[%emt 0:00:00]} 2. Nf3 {[%emt 0:00:00]} Nf6 {[%emt 0:00:00]} 3. c4 {[%emt 0:00:00]} c6 {[%emt 0:00:00]} 4. cxd5 {[%emt 0:01:16]} cxd5 {[%emt 0:00:00]} 5. Nc3 {[%emt 0:00:04]} Nc6 {[%emt 0:01:13]} 6. Bf4 {[%emt 0:01:25]} Qb6 {[%emt 0:04:18]} 7. Na4 {[%emt 0:00:27]} Qa5+ {[%emt 0:00:39] LiveBook: 31 Games} 8. Bd2 {[%emt 0:00:11]} Qd8 {[%emt 0:00:50]} 9. e3 {[%emt 0:00:15]} e6 {[%emt 0:01:14]} 10. Bb5 {[%emt 0:01:51] D13: Slav Defence: Exchange variation without ...Bf5} Bd7 {[%emt 0:04:51]} 11. O-O {[%emt 0:04:42]} Bd6 {[%emt 0:02:04]} (11... Ne4 12. Rc1 Rc8 13. Nc5 Bxc5 14. dxc5 Nxd2 15. Qxd2 O-O 16. b4 Qe7 17. Be2 a6 {1-0 (80) Hungaski,R (2511)-Molina,R (2453) Buenos Aires 2017}) 12. Rc1 {[%emt 0:00:58]} O-O {[%emt 0:03:54]} 13. Nc5 {[%emt 0:16:04]} Qb6 {[%emt 0:03:24]} 14. a4 $146 {[%emt 0:13:05]} ({Predecessor:} 14. Nxd7 Nxd7 15. Qa4 Rfc8 16. Rc2 a6 17. Bd3 Nf6 {½-½ (26) Golz,W-Hennings,A Schwerin 1969}) 14... Rac8 {[%emt 0:16:19]} 15. Qe2 {[%emt 0:03:52]} (15. b4 $14) 15... a6 {[%emt 0:00:58]} 16. Bxc6 {[%emt 0:03:55]} Bxc6 {[%emt 0:01:27]} 17. b4 {[%emt 0:01:32]} Rfd8 $11 {[%emt 0:06:00]} 18. Rc2 {[%emt 0:05:52]} Qa7 {[%emt 0:13:40]} 19. Rfc1 {[%emt 0:05:36]} Bxc5 {[%emt 0:05:21]} 20. Rxc5 {[%emt 0:03:17]} Bd7 {[%emt 0:00:08]} 21. Qd1 {[%emt 0:06:50]} b6 {[%emt 0:04:20]} 22. Rxc8 {[%emt 0:02:17]} Rxc8 {[%emt 0:00:02]} 23. Rxc8+ {[%emt 0:00:17]} Bxc8 {[%emt 0:00:02]} 24. Qc2 {[%emt 0:00:35]} Qb7 {[%emt 0:00:48]} 25. Ne5 {[%emt 0:01:20]} Ne4 {[%emt 0:02:58]} 26. b5 {[%emt 0:07:37]} axb5 {[%emt 0:08:12]} 27. axb5 {[%emt 0:00:04]} f6 {[%emt 0:00:38]} 28. Nc6 {[%emt 0:02:43]} Nd6 {[%emt 0:04:23]} 29. Bb4 {[%emt 0:00:15]} Nc4 {[%emt 0:00:11]} 30. e4 {[%emt 0:02:07]} Bd7 {[%emt 0:01:40]} 31. exd5 {[%emt 0:00:22]} exd5 {[%emt 0:00:02]} 32. Qe2 {[%emt 0:00:19]} Qa8 {[%emt 0:03:03]} 33. h3 {[%emt 0:01:02]} Qe8 {[%emt 0:00:25]} 34. Ne7+ {[%emt 0:05:09]} Kh8 {[%emt 0:00:25]} 35. Qf3 {[%emt 0:00:29]} Be6 {[%emt 0:02:59]} 36. Qf4 {[%emt 0:06:14]} h6 {[%emt 0:00:44]} 37. Nc6 {[%emt 0:03:07]} Qg6 {[%emt 0:01:59]} 38. Kh2 {[%emt 0:00:27]} 1/2-1/2

[Event "WTCC-50 2018"]
[Site "Radebeul"]
[Date "2018.07.08"]
[Round "2"]
[White "Findlay, Ian T."]
[Black "Sundell, Bo"]
[Result "1-0"]
[ECO "C03"]
[WhiteElo "2244"]
[BlackElo "2157"]
[Annotator "NA"]
[PlyCount "51"]
[EventDate "2018.07.07"]
[EventType "team-tourn"]
[EventCountry "GER"]
[SourceTitle "playchess.com"]
[Source "ChessBase"]
[SourceQuality "1"]
[TimeControl "40/5400+30:1800+30"]

1. e4 {[%emt 0:00:00]} e6 {[%emt 0:10:50]} 2. d4 {[%emt 0:00:00]} d5 {[%emt 0:00:02]} 3. Nd2 {[%emt 0:00:00]} dxe4 {[%emt 0:00:14]} 4. Nxe4 {[%emt 0:00:00]} Nf6 {[%emt 0:00:13]} 5. Nxf6+ {[%emt 0:00:13]} Qxf6 {[%emt 0:00:34]} 6. Nf3 {[%emt 0:00:08]} h6 {[%emt 0:01:06]} 7. h4 {[%emt 0:00:38]} Qd8 {[%emt 0:05:26]} 8. Bd3 {[%emt 0:01:45]} c5 {[%emt 0:02:24]} 9. Be3 {[%emt 0:04:38]} cxd4 {[%emt 0:09:33]} 10. Nxd4 {[%emt 0:10:20]} Be7 {[%emt 0:01:37]} ({Black should try} 10... e5 $14) 11. Qh5 $16 {[%emt 0:07:05]} Nc6 {[%emt 0:14:28]} 12. O-O-O {[%emt 0:08:09]} Qa5 {[%emt 0:07:06]} 13. Qxa5 {[%emt 0:01:45]} Nxa5 {[%emt 0:00:04]} 14. Nb5 {[%emt 0:01:34]} Bd8 {[%emt 0:19:00]} 15. Bc5 {[%emt 0:04:53]} Be7 {[%emt 0:01:52]} 16. Be3 {[%emt 0:19:46]} Bd8 {[%emt 0:00:22]} 17. Nxa7 {[%emt 0:01:57]} O-O {[%emt 0:04:27]} 18. Bc5 {[%emt 0:02:15]} Rxa7 {[%emt 0:02:57]} 19. Bxa7 {[%emt 0:00:27]} b6 {[%emt 0:00:07]} 20. Bb8 {[%emt 0:01:38]} Be7 {[%emt 0:01:13]} 21. Bg3 {[%emt 0:06:40]} Nc6 {[%emt 0:03:07]} 22. Be4 {[%emt 0:00:51]} Nb4 {[%emt 0:02:17]} 23. a3 {[%emt 0:00:26]} Na6 {[%emt 0:00:19]} 24. Bd6 {[%emt 0:00:28]} Bxd6 {[%emt 0:00:40]} 25. Rxd6 {[%emt 0:00:04]} Nc5 {[%emt 0:00:08]} 26. Bf3 {[%emt 0:00:30]} 1-0

[Event "WTCC-50 2018"]
[Site "Radebeul"]
[Date "2018.07.08"]
[Round "2"]
[White "Preuss, Heiko"]
[Black "Arenhoevel, Mark"]
[Result "1/2-1/2"]
[ECO "D00"]
[WhiteElo "2235"]
[BlackElo "2077"]
[Annotator "NA"]
[PlyCount "44"]
[EventDate "2018.07.07"]
[EventType "team-tourn"]
[EventCountry "GER"]
[SourceTitle "playchess.com"]
[Source "ChessBase"]
[SourceQuality "1"]
[TimeControl "40/5400+30:1800+30"]

1. d4 {[%emt 0:00:00]} d5 {[%emt 0:00:00]} 2. g3 {[%emt 0:00:04]} Nf6 {[%emt 0:02:00]} 3. Bg2 {[%emt 0:00:11]} g6 {[%emt 0:01:09]} 4. Nf3 {[%emt 0:00:36]} Bg7 {[%emt 0:00:32]} 5. O-O {[%emt 0:01:23]} c6 {[%emt 0:00:52]} 6. b3 {[%emt 0:01:49]} O-O {[%emt 0:01:43]} 7. Bb2 {[%emt 0:00:36]} Bf5 {[%emt 0:01:42]} 8. Nbd2 {[%emt 0:03:33]} Nbd7 {[%emt 0:03:54]} 9. Nh4 {[%emt 0:02:53]} Be6 {[%emt 0:01:41]} 10. f4 {[%emt 0:08:54]} Ng4 {[%emt 0:06:29]} 11. Rf3 {[%emt 0:01:44]} f5 {[%emt 0:01:00]} 12. h3 {[%emt 0:04:44]} Ngf6 $15 {[%emt 0:01:14]} 13. Rb1 {[%emt 0:14:11]} a5 {[%emt 0:07:44]} 14. Kh2 {[%emt 0:10:10]} a4 {[%emt 0:02:32]} 15. b4 {[%emt 0:06:18]} Ne4 {[%emt 0:08:59]} 16. Rf1 {[%emt 0:02:38]} Nb6 {[%emt 0:09:26]} 17. c3 {[%emt 0:08:32]} a3 {[%emt 0:06:28]} 18. Ba1 {[%emt 0:00:03]} Nxd2 {[%emt 0:00:37]} 19. Qxd2 {[%emt 0:00:02]} Nc4 {[%emt 0:00:16]} 20. Qd3 {[%emt 0:02:01]} Qd6 {[%emt 0:03:32]} 21. Nf3 {[%emt 0:01:26]} b5 {[%emt 0:08:22]} 22. Rf2 {[%emt 0:02:10]} Bd7 {[%emt 0:02:14]} 1/2-1/2

[Event "WTCC-50 2018"]
[Site "Radebeul"]
[Date "2018.07.08"]
[Round "2"]
[White "Polster, Wolfgang"]
[Black "Mai, Iris"]
[Result "1-0"]
[ECO "B23"]
[WhiteElo "2203"]
[BlackElo "2038"]
[Annotator "NA"]
[PlyCount "61"]
[EventDate "2018.07.07"]
[EventType "team-tourn"]
[EventCountry "GER"]
[SourceTitle "playchess.com"]
[Source "ChessBase"]
[SourceQuality "1"]
[TimeControl "40/5400+30:1800+30"]

1. e4 {[%emt 0:00:00]} c5 {[%emt 0:00:00]} 2. Nc3 {[%emt 0:00:00]} e6 {[%emt 0:00:13]} 3. Nf3 {[%emt 0:00:14]} a6 {[%emt 0:00:50]} 4. Be2 {[%emt 0:01:06]} b5 {[%emt 0:03:58]} 5. d3 {[%emt 0:05:08]} d6 {[%emt 0:07:19]} 6. O-O {[%emt 0:01:32]} Bb7 {[%emt 0:03:20]} 7. Re1 {[%emt 0:06:36]} Nd7 {[%emt 0:07:35]} 8. Bf4 {[%emt 0:09:20]} e5 {[%emt 0:18:26]} 9. Bg3 {[%emt 0:07:29]} b4 {[%emt 0:07:34]} 10. Nb1 {[%emt 0:03:02]} h5 $14 {[%emt 0:00:22]} 11. h4 {[%emt 0:04:59]} Be7 {[%emt 0:00:10]} 12. Nbd2 {[%emt 0:00:41]} Nf8 {[%emt 0:10:08]} 13. c3 {[%emt 0:00:41]} bxc3 {[%emt 0:09:34]} 14. Qa4+ {[%emt 0:03:28]} Qd7 {[%emt 0:00:08]} 15. Qxd7+ {[%emt 0:00:07]} Nxd7 {[%emt 0:06:06]} 16. bxc3 {[%emt 0:00:16]} Ngf6 {[%emt 0:05:12]} 17. Nc4 {[%emt 0:04:20]} Ra7 {[%emt 0:01:37]} 18. Bd1 {[%emt 0:02:48]} O-O {[%emt 0:03:14]} 19. Ba4 {[%emt 0:00:50]} Rc8 {[%emt 0:03:24]} 20. Rab1 {[%emt 0:01:34]} Bc6 {[%emt 0:03:28]} 21. Bxc6 {[%emt 0:01:08]} Rxc6 {[%emt 0:00:02]} 22. Rb3 {[%emt 0:00:43]} Kh7 {[%emt 0:03:31]} 23. Reb1 {[%emt 0:01:58]} Kg6 {[%emt 0:01:01]} 24. Bxe5 {[%emt 0:01:45]} Ng4 {[%emt 0:01:04]} 25. Bf4 {[%emt 0:00:55]} f6 {[%emt 0:01:25]} 26. Rb7 {[%emt 0:01:40]} Rc7 {[%emt 0:01:58]} 27. Rxc7 {[%emt 0:04:04]} Rxc7 {[%emt 0:00:02]} 28. Nxd6 {[%emt 0:00:31]} Nde5 {[%emt 0:00:13]} 29. Nc4 {[%emt 0:03:01]} Rd7 {[%emt 0:00:36]} 30. Bxe5 {[%emt 0:00:14]} Rxd3 {[%emt 0:00:30]} 31. Ne1 {[%emt 0:01:11]} 1-0

[Event "WTCC-50 2018"]
[Site "Radebeul"]
[Date "2018.07.08"]
[Round "2"]
[White "Pedersen, Gunnar"]
[Black "Paehtz, Thomas"]
[Result "1/2-1/2"]
[ECO "A46"]
[WhiteElo "2201"]
[BlackElo "2347"]
[Annotator "NA"]
[PlyCount "53"]
[EventDate "2018.07.07"]
[EventType "team-tourn"]
[EventCountry "GER"]
[SourceTitle "playchess.com"]
[Source "ChessBase"]
[SourceQuality "1"]
[TimeControl "40/5400+30:1800+30"]

1. d4 {[%emt 0:00:00]} Nf6 {[%emt 0:00:00]} 2. Nf3 {[%emt 0:00:00]} d6 {[%emt 0:00:08]} 3. c4 {[%emt 0:00:05]} c6 {[%emt 0:00:11]} 4. Nc3 {[%emt 0:00:21]} Bf5 {[%emt 0:00:06]} 5. e3 {[%emt 0:04:54]} g6 {[%emt 0:10:20]} 6. Bd3 {[%emt 0:04:43]} Bxd3 {[%emt 0:00:22]} 7. Qxd3 {[%emt 0:00:09]} Bg7 {[%emt 0:00:09]} 8. O-O {[%emt 0:00:56]} Nbd7 {[%emt 0:04:05]} 9. b3 {[%emt 0:02:29]} O-O {[%emt 0:00:31]} 10. Bb2 {[%emt 0:00:41]} e5 {[%emt 0:02:55]} 11. Rad1 {[%emt 0:03:50]} Re8 {[%emt 0:03:00]} 12. dxe5 {[%emt 0:06:02]} dxe5 {[%emt 0:01:37]} 13. Ne4 {[%emt 0:00:31]} Nxe4 {[%emt 0:01:19]} 14. Qxd7 $11 {[%emt 0:11:31]} Qb6 {[%emt 0:11:00]} 15. Qd3 {[%emt 0:13:25]} Nxf2 {[%emt 0:29:07]} 16. Rxf2 {[%emt 0:01:17]} e4 {[%emt 0:00:08]} 17. Qe2 {[%emt 0:00:10]} Bxb2 {[%emt 0:21:03]} 18. Ng5 {[%emt 0:03:04]} Bg7 {[%emt 0:00:21]} 19. Rxf7 {[%emt 0:20:11]} Rad8 {[%emt 0:05:05]} 20. Rdd7 {[%emt 0:13:12]} Rxd7 {[%emt 0:00:51]} 21. Rxd7 {[%emt 0:01:11]} Bh6 22. h4 {[%emt 0:01:09]} Bxg5 {[%emt 0:07:36]} 23. hxg5 {[%emt 0:00:07]} Qc5 {[%emt 0:00:10]} 24. Qb2 {[%emt 0:03:26]} Qxe3+ {[%emt 0:00:23]} 25. Kh1 {[%emt 0:00:32]} Qe1+ {[%emt 0:00:36]} 26. Kh2 {[%emt 0:00:09]} Qh4+ {[%emt 0:00:32]} 27. Kg1 {[%emt 0:00:08]} 1/2-1/2

[Event "WTCC-50 2018"]
[Site "Radebeul"]
[Date "2018.07.08"]
[Round "2"]
[White "Burchardt, Brigitte"]
[Black "Fritsche, Lutz"]
[Result "0-1"]
[ECO "B06"]
[WhiteElo "2195"]
[BlackElo "2303"]
[Annotator "NA"]
[PlyCount "70"]
[EventDate "2018.07.07"]
[EventType "team-tourn"]
[EventCountry "GER"]
[SourceTitle "playchess.com"]
[Source "ChessBase"]
[SourceQuality "1"]
[TimeControl "40/5400+30:1800+30"]

1. e4 {[%emt 0:00:00]} g6 {[%emt 0:00:00]} 2. d4 {[%emt 0:00:00]} Bg7 {[%emt 0:00:00]} 3. Nc3 {[%emt 0:00:00]} d6 {[%emt 0:00:09]} 4. Be3 {[%emt 0:03:08]} a6 {[%emt 0:00:45]} 5. a4 {[%emt 0:03:29]} b6 {[%emt 0:04:29]} 6. Bc4 {[%emt 0:03:08]} Bb7 {[%emt 0:03:58]} 7. Nge2 {[%emt 0:06:30]} Nf6 {[%emt 0:00:41]} 8. f3 {[%emt 0:00:05]} d5 {[%emt 0:02:11]} 9. exd5 {[%emt 0:06:03]} Nxd5 {[%emt 0:00:15]} 10. Nxd5 {[%emt 0:00:05]} Bxd5 {[%emt 0:00:08]} 11. Bxd5 {[%emt 0:07:09]} Qxd5 {[%emt 0:00:15]} 12. O-O {[%emt 0:01:50]} Nc6 {[%emt 0:01:32]} 13. Qd3 {[%emt 0:11:39]} O-O {[%emt 0:05:21]} 14. Rfd1 {[%emt 0:11:43]} Rfd8 $11 {[%emt 0:07:31]} 15. c3 {[%emt 0:08:19]} Ne5 {[%emt 0:07:53]} 16. Qc2 {[%emt 0:07:23]} Nc4 {[%emt 0:02:24]} 17. Bf2 {[%emt 0:08:27]} Bh6 {[%emt 0:00:38]} 18. Rd3 {[%emt 0:00:14]} b5 {[%emt 0:01:05]} 19. Ng3 {[%emt 0:04:18]} Qc6 {[%emt 0:08:46]} 20. b3 {[%emt 0:01:52]} Nb6 {[%emt 0:01:03]} 21. a5 {[%emt 0:08:50]} Nd5 {[%emt 0:00:21]} 22. Qb2 {[%emt 0:00:03]} Nf4 {[%emt 0:07:45]} 23. Rdd1 {[%emt 0:00:28]} e5 {[%emt 0:05:52]} 24. b4 {[%emt 0:01:47]} Qc4 {[%emt 0:03:09]} 25. Qc2 {[%emt 0:01:52]} Nd5 {[%emt 0:09:12]} 26. dxe5 {[%emt 0:01:58]} Nxc3 {[%emt 0:00:52]} 27. Rxd8+ {[%emt 0:01:14]} Rxd8 {[%emt 0:00:10]} 28. e6 {[%emt 0:00:39]} fxe6 {[%emt 0:00:26]} 29. Bc5 {[%emt 0:00:49]} Rd2 {[%emt 0:00:19]} 30. Qc1 {[%emt 0:00:13]} Rxg2+ {[%emt 0:08:04]} 31. Kxg2 {[%emt 0:00:02]} Bxc1 {[%emt 0:00:17]} 32. Rxc1 {[%emt 0:00:02]} Qd3 {[%emt 0:00:14]} 33. Rf1 {[%emt 0:01:09]} Nd5 {[%emt 0:01:20]} 34. Re1 {[%emt 0:01:07]} Nf4+ {[%emt 0:00:22]} 35. Kf2 {[%emt 0:01:23]} Qd2+ {[%emt 0:00:17]} 0-1

[Event "WTCC-50 2018"]
[Site "Radebeul"]
[Date "2018.07.08"]
[Round "2"]
[White "Olsson, Peter"]
[Black "Plotkin, Victor"]
[Result "1/2-1/2"]
[ECO "A45"]
[WhiteElo "2172"]
[BlackElo "2248"]
[Annotator "NA"]
[PlyCount "108"]
[EventDate "2018.07.07"]
[EventType "team-tourn"]
[EventCountry "GER"]
[SourceTitle "playchess.com"]
[Source "ChessBase"]
[SourceQuality "1"]
[TimeControl "40/5400+30:1800+30"]

1. d4 {[%emt 0:00:04]} Nf6 {[%emt 0:00:00]} 2. Bf4 {[%emt 0:00:08]} e6 {[%emt 0:01:00]} 3. e3 {[%emt 0:02:48]} b6 {[%emt 0:01:10]} 4. Nd2 {[%emt 0:04:52]} Bb7 {[%emt 0:00:26]} 5. c3 {[%emt 0:00:51]} Be7 {[%emt 0:00:15]} 6. h3 {[%emt 0:00:39]} d6 {[%emt 0:02:49]} 7. Ngf3 {[%emt 0:04:08]} c5 {[%emt 0:06:29]} 8. Bd3 {[%emt 0:04:12]} Nc6 {[%emt 0:02:21]} 9. Qe2 {[%emt 0:04:03]} O-O {[%emt 0:03:43]} 10. O-O {[%emt 0:04:07]} Qc7 {[%emt 0:20:14] LiveBook: 9 Games A47: 1 d4 Nf6 2 Nf3 b6: Torre, London and Colle Systems} 11. a3 {[%emt 0:15:19]} (11. dxc5 bxc5 12. e4 Nd7 13. Nc4 Nb6 14. Rad1 Nxc4 15. Bxc4 Rad8 16. Rd2 Ne5 17. Nxe5 dxe5 18. Rxd8 Rxd8 {½-½ (55) Martinovic,S (2583)-Cvitan,O (2484) Zadar 2017}) 11... Rfe8 {[%emt 0:02:58]} 12. Bh2 {[%emt 0:07:30]} e5 $146 {[%emt 0:02:57]} ({Predecessor:} 12... Bf8 13. e4 e5 14. dxe5 dxe5 15. Ba6 {½-½ (15) Backwinkel,P (2317)-Van Osch,M (2263) Germany 2016}) 13. dxe5 {[%emt 0:00:57]} dxe5 {[%emt 0:01:18]} 14. Bc4 {[%emt 0:04:44]} Bf8 {[%emt 0:07:36]} 15. Rfd1 {[%emt 0:08:20]} h6 {[%emt 0:03:36]} 16. e4 {[%emt 0:04:06]} g6 {[%emt 0:12:00]} 17. Nh4 {[%emt 0:18:11]} Kg7 {[%emt 0:00:52]} 18. Rf1 {[%emt 0:06:58]} Bd6 {[%emt 0:01:19]} 19. Rad1 {[%emt 0:00:54]} Rad8 {[%emt 0:02:18]} 20. Bb5 {[%emt 0:02:04]} Qc8 {[%emt 0:01:17]} 21. Nc4 {[%emt 0:01:33]} Bc7 {[%emt 0:00:28]} 22. Rxd8 {[%emt 0:00:21]} Qxd8 {[%emt 0:00:33]} 23. Rd1 {[%emt 0:00:52]} Qe7 {[%emt 0:01:12]} 24. Ne3 {[%emt 0:00:11]} Kh7 {[%emt 0:04:32]} 25. Nd5 {[%emt 0:01:49]} Nxd5 {[%emt 0:00:25]} 26. exd5 {[%emt 0:00:04]} Qxh4 {[%emt 0:00:28]} 27. Bxc6 {[%emt 0:01:06]} Bxc6 {[%emt 0:00:46]} 28. dxc6 {[%emt 0:00:02]} Qf6 {[%emt 0:01:27]} 29. Rd7 {[%emt 0:00:58]} Re7 {[%emt 0:00:38]} 30. Qd2 {[%emt 0:01:19]} Qe6 {[%emt 0:04:56]} 31. b4 {[%emt 0:00:44]} cxb4 {[%emt 0:02:48]} 32. cxb4 {[%emt 0:00:24]} b5 {[%emt 0:01:03]} 33. Qd5 {[%emt 0:01:17]} Rxd7 {[%emt 0:00:59]} 34. Qxd7 {[%emt 0:00:17]} Qxd7 {[%emt 0:00:18]} 35. cxd7 {[%emt 0:00:02]} f6 {[%emt 0:00:46]} 36. f4 {[%emt 0:00:25]} e4 {[%emt 0:04:44]} 37. f5 {[%emt 0:00:12]} Bb6+ {[%emt 0:02:44]} 38. Kf1 {[%emt 0:00:01]} gxf5 {[%emt 0:00:19]} 39. Bg1 {[%emt 0:00:08]} Bd8 {[%emt 0:01:31]} 40. Bxa7 {[%emt 0:00:16]} Kg6 {[%emt 0:00:32]} 41. Ke2 {[%emt 0:14:21]} Kf7 {[%emt 0:00:38]} 42. Ke3 {[%emt 0:03:00]} Ke6 {[%emt 0:03:04]} 43. Kd4 {[%emt 0:05:35]} Be7 {[%emt 0:01:49]} 44. g4 {[%emt 0:00:52]} fxg4 {[%emt 0:02:04]} 45. hxg4 {[%emt 0:00:11]} Kxd7 {[%emt 0:06:22]} 46. Kxe4 {[%emt 0:00:16]} Ke6 {[%emt 0:00:18]} 47. Bc5 {[%emt 0:03:21]} Bd8 {[%emt 0:01:08]} 48. Bf8 $11 {[%emt 0:02:09]} Bc7 {[%emt 0:00:15]} 49. Kd4 Bb6+ {[%emt 0:00:19]} 50. Ke4 {[%emt 0:05:19]} Bc7 {[%emt 0:00:09]} 51. Kd4 {[%emt 0:00:15]} Bb6+ {[%emt 0:00:08]} 52. Ke4 {[%emt 0:00:20]} Bc7 53. Bxh6 Be5 54. Bf8 Bc7 1/2-1/2

[Event "WTCC-50 2018"]
[Site "Radebeul"]
[Date "2018.07.08"]
[Round "2"]
[White "Ernst, Michael"]
[Black "Hoebarth, Guenter"]
[Result "1/2-1/2"]
[ECO "A45"]
[WhiteElo "2156"]
[BlackElo "1952"]
[Annotator "NA"]
[PlyCount "75"]
[EventDate "2018.07.07"]
[EventType "team-tourn"]
[EventCountry "GER"]
[SourceTitle "playchess.com"]
[Source "ChessBase"]
[SourceQuality "1"]
[TimeControl "40/5400+30:1800+30"]

1. d4 {[%emt 0:00:00]} Nf6 {[%emt 0:00:05]} 2. Bf4 {[%emt 0:00:00]} c5 {[%emt 0:02:41]} 3. e3 {[%emt 0:00:00]} cxd4 {[%emt 0:01:14]} 4. exd4 {[%emt 0:00:09]} Nd5 {[%emt 0:01:38]} 5. Bc1 {[%emt 0:04:24]} Qa5+ {[%emt 0:02:24]} 6. c3 {[%emt 0:01:30]} Nc6 {[%emt 0:04:38]} 7. Nf3 {[%emt 0:01:22]} d6 {[%emt 0:03:23]} 8. Be2 {[%emt 0:08:53]} g6 {[%emt 0:03:26]} 9. O-O {[%emt 0:00:26]} Bg7 {[%emt 0:00:16]} 10. Re1 {[%emt 0:00:42]} O-O {[%emt 0:00:11]} 11. h3 {[%emt 0:05:08]} e5 {[%emt 0:06:24]} 12. dxe5 {[%emt 0:03:41]} dxe5 {[%emt 0:03:24]} 13. Nbd2 {[%emt 0:04:08]} Nf4 {[%emt 0:26:57]} 14. Nc4 {[%emt 0:01:36]} Nxe2+ {[%emt 0:01:19]} 15. Qxe2 {[%emt 0:00:07]} Qc7 {[%emt 0:01:15]} 16. Ncxe5 {[%emt 0:07:04]} Nxe5 {[%emt 0:02:04]} 17. Nxe5 {[%emt 0:00:18]} Be6 {[%emt 0:01:15]} 18. Bf4 {[%emt 0:02:17]} Qc5 {[%emt 0:00:39]} 19. Nd3 {[%emt 0:02:28]} Qf5 {[%emt 0:02:36]} 20. Qe3 {[%emt 0:09:26]} Bc4 {[%emt 0:02:11]} 21. Nc5 {[%emt 0:04:58]} b5 {[%emt 0:12:28]} 22. Nb3 {[%emt 0:02:55]} Qc2 {[%emt 0:07:13]} 23. Qd2 {[%emt 0:03:10]} Bxb3 {[%emt 0:02:05]} 24. axb3 {[%emt 0:00:04]} Qxb3 {[%emt 0:00:02]} 25. Ra3 {[%emt 0:01:07]} Qc4 {[%emt 0:00:21]} 26. Rea1 {[%emt 0:02:03]} Rad8 {[%emt 0:02:19]} 27. Qc1 {[%emt 0:02:33]} b4 {[%emt 0:01:03]} 28. Rxa7 {[%emt 0:13:32]} bxc3 {[%emt 0:00:42]} 29. bxc3 {[%emt 0:00:41]} Qxc3 {[%emt 0:00:25]} 30. Qxc3 {[%emt 0:00:18]} Bxc3 {[%emt 0:00:15]} 31. Rc1 {[%emt 0:00:50]} Bd4 {[%emt 0:00:33]} 32. Rb7 {[%emt 0:00:37]} Kg7 {[%emt 0:01:09]} 33. Rc4 {[%emt 0:02:08]} Bf6 {[%emt 0:00:57]} 34. Be3 {[%emt 0:03:02]} Rd1+ {[%emt 0:00:08]} 35. Kh2 {[%emt 0:00:24]} Rfd8 {[%emt 0:00:32]} 36. g3 {[%emt 0:01:30]} R8d7 {[%emt 0:00:09]} 37. Rb8 {[%emt 0:01:01]} Be5 {[%emt 0:02:14]} 38. Rb5 {[%emt 0:00:49]} 1/2-1/2